bitfinex-derivatives/quotes_SOLF0:USTF0_20250818
["timestamp","ask_amount","ask_price","bid_price","bid_amount"]
[1755532174084,54.0,182.63,182.48,6.06849388]
[1755532174269,139.86,182.62,182.55,3.84742833]
[1755532174980,139.86,182.62,182.53,3.84742833]
[1755532175880,139.86,182.62,182.54,5.4753]
[1755532176075,139.86,182.62,182.53,3.84742833]
[1755532176279,139.86,182.62,182.51,6.06345611]
[1755532176480,139.86,182.62,182.53,5.4755]
[1755532177583,139.86,182.62,182.52,5.476]
[1755532177984,139.86,182.62,182.5,6.06345611]
[1755532179085,139.86,182.62,182.53,5.4756]
[1755532180086,139.86,182.62,182.5,6.06345611]
[1755532180474,368.14,182.66,182.53,5.4757]
[1755532180681,422.14,182.66,182.53,6.06345611]
[1755532180983,54.0,182.73,182.61,5.4733]
[1755532181185,368.06,182.76,182.59,6.06345611]
[1755532181186,193.72,182.72,182.59,6.06345611]
[1755532181590,193.72,182.72,182.6,5.4736]
[1755532181886,193.72,182.72,182.59,6.06345611]
[1755532182285,193.72,182.72,182.59,11.53735611]
[1755532182884,193.72,182.72,182.6,5.4736]
[1755532183084,193.72,182.72,182.59,6.06345611]
[1755532183689,210.17,182.72,182.56,6.06345611]
[1755532183890,70.45,182.71,182.56,6.06345611]
[1755532184090,70.45,182.71,182.59,5.4737]
[1755532184293,70.45,182.71,182.56,6.06345611]
[1755532184588,70.45,182.71,182.6,5.4736]
[1755532184988,70.45,182.71,182.56,6.06345611]
[1755532185182,70.45,182.71,182.61,5.4733]
[1755532185382,70.45,182.71,182.56,6.06345611]
[1755532185782,54.0,182.71,182.6,5.4736]
[1755532186991,54.0,182.71,182.56,6.06345611]
[1755532187593,76.51345611,182.71,182.54,6.06345611]
[1755532187989,139.32,182.7,182.57,6.06345611]
[1755532188490,139.32,182.7,182.6,5.4736]
[1755532188693,139.32,182.7,182.57,6.06345611]
[1755532188892,139.32,182.7,182.52,6.08454895]
[1755532189091,139.32,182.7,182.57,5.4743]
[1755532189288,155.77,182.7,182.57,5.4743]
[1755532189486,155.77,182.7,182.55,6.06345611]
[1755532190085,155.77,182.7,182.58,5.4743]
[1755532191498,139.32,182.7,182.55,6.06345611]
[1755532191692,16.45,182.73,182.58,6.06345611]
[1755532191998,155.57,182.72,182.58,6.06345611]
[1755532192202,374.12345611,182.76,182.62,5.4731]
[1755532192395,4.40975023,182.75,182.61,6.06345611]
[1755532192595,139.14,182.74,182.61,6.06345611]
[1755532192994,54.0,182.73,182.63,5.4727]
[1755532193196,54.0,182.72,182.63,5.4727]
[1755532193401,54.0,182.72,182.61,6.06345611]
[1755532193592,54.0,182.72,182.62,5.4729]
[1755532197996,54.0,182.72,182.61,11.53665611]
[1755532198411,54.0,182.72,182.62,3.84432881]
[1755532198608,54.0,182.72,182.62,9.31732881]
[1755532198798,54.0,182.72,182.62,3.84432881]
[1755532200201,54.0,182.72,182.62,9.31732881]
[1755532201409,54.0,182.72,182.62,3.84432881]
[1755532202906,54.0,182.72,182.62,9.31732881]
[1755532203406,54.0,182.72,182.52,88.80209511]
[1755532203407,54.0,182.72,182.65,3.84432881]
[1755532203601,193.04,182.72,182.65,3.84432881]
[1755532203801,139.04,182.72,182.65,3.84432881]
[1755532204401,139.04,182.72,182.65,9.31642881]
[1755532204801,139.04,182.72,182.65,3.84432881]
[1755532206001,139.04,182.72,182.65,9.31632881]
[1755532206306,139.04,182.72,182.65,3.84432881]
[1755532206510,139.04,182.74,182.68,3.84432881]
[1755532206810,54.0,182.75,182.68,3.84432881]
[1755532207199,54.0,182.75,182.69,5.4709]
[1755532207604,54.0,182.75,182.68,3.84432881]
[1755532208112,54.0,182.75,182.68,9.31542881]
[1755532208512,54.0,182.75,182.68,3.84432881]
[1755532209806,54.0,182.75,182.69,5.4709]
[1755532210411,54.0,182.75,182.68,9.31552881]
[1755532210613,54.0,182.75,182.61,62.0]
[1755532210806,139.04,182.76,182.67,3.84432881]
[1755532211815,139.04,182.76,182.55,9.19356527]
[1755532212115,0.95243308,182.83,182.75,3.84432881]
[1755532212318,3.84432881,182.9,182.79,5.4677]
[1755532212607,143.40531286,182.89,182.79,5.4677]
[1755532212811,4.40531286,182.88,182.67,17.02734895]
[1755532213014,139.0,182.89,182.71,3.84432881]
[1755532213305,4.3998441,182.88,182.78,3.84432881]
[1755532213516,139.0,182.89,182.81,3.84432881]
[1755532213709,139.0,182.89,182.7,6.08454895]
[1755532214017,139.0,182.89,182.81,3.84432881]
[1755532214516,16.45,182.92,182.71,65.84432881]
[1755532214517,138.98,182.9,182.8,5.4674]
[1755532214708,138.98,182.9,182.84,3.84432881]
[1755532215309,138.98,182.9,182.82,3.84432881]
[1755532215717,373.84568197,183.03,182.88,3.84432881]
[1755532215907,3.84432881,183.01,182.88,3.84432881]
[1755532216112,3.84432881,182.95,182.84,3.84432881]
[1755532216415,138.98,182.94,182.85,3.84432881]
[1755532216615,138.98,182.94,182.88,3.84432881]
[1755532217013,138.98,182.94,182.82,3.84432881]
[1755532217216,3.84432881,182.89,182.76,3.84432881]
[1755532217414,138.94,182.88,182.76,3.84432881]
[1755532217614,138.94,182.88,182.75,3.84432881]
[1755532217816,3.84432881,182.86,182.75,3.84432881]
[1755532218016,138.94,182.88,182.64,367.76]
[1755532218017,3.84432881,182.83,182.72,3.84432881]
[1755532218215,367.64,182.9,182.64,367.76]
[1755532218216,138.94,182.82,182.75,3.84432881]
[1755532218412,139.1,182.89,182.78,3.84432881]
[1755532218618,3.84432881,182.93,182.71,3.84432881]
[1755532218619,3.84432881,182.96,182.84,3.84432881]
[1755532218824,139.26,182.94,182.84,3.84432881]
[1755532219121,3.84432881,182.9,182.79,3.84432881]
[1755532219517,3.84432881,182.87,182.73,3.84432881]
[1755532219815,139.3,182.86,182.73,3.84432881]
[1755532220514,139.24,182.87,182.74,6.04988953]
[1755532220721,139.24,182.87,182.77,6.04988953]
[1755532220915,139.24,182.87,182.76,6.04988953]
[1755532222617,139.24,182.87,182.77,5.4683]
[1755532223023,139.24,182.87,182.76,6.04988953]
[1755532223319,367.64,183.0,182.82,6.04988953]
[1755532223521,367.64,183.0,182.85,6.04988953]
[1755532223922,367.64,183.0,182.89,6.04988953]
[1755532223923,139.32,182.99,182.89,6.04988953]
[1755532224229,506.96,183.0,182.89,11.51478953]
[1755532224723,506.96,183.0,182.89,6.04988953]
[1755532225626,139.32,183.0,182.89,6.04988953]
[1755532226219,139.32,183.0,182.89,11.51478953]
[1755532226624,139.32,183.0,182.91,5.4644]
[1755532226819,373.50988953,183.1,182.92,6.04988953]
[1755532227024,139.5,183.04,182.92,6.04988953]
[1755532227321,139.5,183.04,182.88,6.04988953]
[1755532227525,6.04988953,183.03,182.85,6.04988953]
[1755532228025,6.04988953,182.99,182.82,6.04988953]
[1755532228223,6.04988953,182.99,182.83,5.4667]
[1755532228415,6.04988953,183.02,182.82,6.04988953]
[1755532228617,139.66,183.02,182.86,6.04988953]
[1755532228823,139.66,183.02,182.89,5.465]
[1755532229020,139.66,183.02,182.86,6.04988953]
[1755532229415,139.66,183.02,182.87,5.4655]
[1755532229632,139.66,183.02,182.86,6.04988953]
[1755532230426,0.51642247,183.05,182.92,5.4638]
[1755532230730,139.62,183.04,182.9,6.04988953]
[1755532231026,139.62,183.04,182.93,5.4636]
[1755532231826,139.62,183.04,182.92,5.464]
[1755532232025,139.62,183.04,182.9,6.04988953]
[1755532232226,139.62,183.04,182.93,6.04988953]
[1755532232425,139.62,183.04,182.82,62.0]
[1755532232730,139.62,183.04,182.89,6.04988953]
[1755532233028,0.51642247,183.05,182.92,6.04988953]
[1755532234531,0.51642247,183.05,182.95,6.04988953]
[1755532234826,0.51642247,183.05,182.82,72.934]
[1755532235135,0.51642247,183.05,182.91,6.04988953]
[1755532235430,6.04988953,183.04,182.88,6.04988953]
[1755532235623,6.04988953,183.01,182.85,6.04988953]
[1755532235829,145.88988953,183.01,182.85,6.04988953]
[1755532236034,6.04988953,183.01,182.88,5.4652]
[1755532236230,139.84,183.02,182.85,6.04988953]
[1755532236430,145.88988953,183.02,182.85,6.04988953]
[1755532236631,162.28988953,183.02,182.85,6.04988953]
[1755532237427,6.04988953,183.03,182.85,6.04988953]
[1755532237620,0.51642247,183.05,182.89,6.04988953]
[1755532237621,139.8,183.04,182.89,6.04988953]
[1755532238631,6.04988953,183.02,182.84,6.04988953]
[1755532238831,139.8,183.01,182.84,6.04988953]
[1755532239532,139.8,183.01,182.85,5.4661]
[1755532239934,156.2,183.01,182.84,6.04988953]
[1755532240726,139.8,183.01,182.84,6.04988953]
[1755532241629,139.8,183.01,182.85,5.4661]
[1755532241836,139.8,183.01,182.84,6.04988953]
[1755532242033,6.04988953,183.02,182.89,5.4649]
[1755532242231,0.51642247,183.05,182.87,6.04988953]
[1755532242431,0.51642247,183.05,182.9,6.04988953]
[1755532242632,0.51642247,183.05,182.92,5.464]
[1755532243035,0.51642247,183.05,182.9,6.04988953]
[1755532243233,0.51642247,183.05,182.93,6.04988953]
[1755532244129,0.51642247,183.05,182.84,10.9327]
[1755532244437,0.51642247,183.05,182.93,6.04988953]
[1755532245137,0.51642247,183.05,182.97,6.04988953]
[1755532245335,0.51642247,183.05,182.98,5.4622]
[1755532245531,0.51642247,183.05,182.97,6.04988953]
[1755532245737,0.51642247,183.05,182.94,6.04988953]
[1755532245930,0.51642247,183.05,182.96,5.4628]
[1755532246128,0.51642247,183.05,182.94,6.04988953]
[1755532246331,0.51642247,183.05,182.98,5.4622]
[1755532246834,0.51642247,183.05,182.94,6.04988953]
[1755532247038,0.51642247,183.05,182.88,62.0]
[1755532247238,0.51642247,183.05,182.94,6.04988953]
[1755532247540,0.51642247,183.05,182.96,5.4627]
[1755532247739,0.51642247,183.05,182.94,6.04988953]
[1755532248134,0.51642247,183.05,182.96,5.4629]
[1755532248338,0.51642247,183.05,182.94,6.04988953]
[1755532248634,0.51642247,183.05,182.95,5.463]
[1755532249028,0.51642247,183.05,182.94,6.04988953]
[1755532249237,0.51642247,183.05,183.01,6.04988953]
[1755532249630,0.51642247,183.05,182.98,6.04988953]
[1755532249930,0.51642247,183.05,183.0,5.4616]
[1755532250133,0.51642247,183.05,182.98,6.04988953]
[1755532250329,0.51642247,183.05,183.01,5.4614]
[1755532250737,0.51642247,183.05,182.99,6.04988953]
[1755532250930,0.51642247,183.05,183.0,5.4615]
[1755532251137,0.51642247,183.05,182.99,6.04988953]
[1755532251342,0.51642247,183.05,183.02,5.461]
[1755532252141,0.51642247,183.05,183.01,5.4613]
[1755532252444,0.51642247,183.05,182.99,6.04988953]
[1755532252637,0.51642247,183.05,183.01,5.4612]
[1755532253442,0.51642247,183.05,183.02,5.4611]
[1755532254042,0.51642247,183.05,182.92,62.0]
[1755532254241,0.51642247,183.05,182.99,6.04988953]
[1755532254841,0.51642247,183.05,182.96,6.04988953]
[1755532255851,0.51642247,183.05,182.97,6.04988953]
[1755532256346,0.51642247,183.05,182.95,5.463]
[1755532256942,0.51642247,183.05,182.94,6.04988953]
[1755532257447,0.51642247,183.05,182.9,367.12]
[1755532257751,0.51642247,183.05,182.91,6.04988953]
[1755532258343,0.51642247,183.05,182.93,5.4636]
[1755532258737,0.51642247,183.05,182.91,6.04988953]
[1755532259845,0.51642247,183.05,182.94,5.4634]
[1755532260044,0.51642247,183.05,182.91,6.04988953]
[1755532260245,0.51642247,183.05,182.9,367.12]
[1755532260552,0.51642247,183.05,182.92,5.4639]
[1755532260755,0.51642247,183.05,182.91,6.04988953]
[1755532261044,0.51642247,183.05,182.94,6.04988953]
[1755532261446,0.51642247,183.05,182.9,373.16988953]
[1755532262053,0.51642247,183.05,182.9,6.04988953]
[1755532262240,0.51642247,183.05,182.94,6.04988953]
[1755532262445,0.51642247,183.05,182.96,5.4628]
[1755532262948,0.51642247,183.05,182.94,6.04988953]
[1755532263151,0.51642247,183.05,182.98,6.04988953]
[1755532263548,0.51642247,183.05,182.99,5.4618]
[1755532263941,0.51642247,183.05,182.98,11.51208953]
[1755532264146,0.51642247,183.05,182.98,6.04988953]
[1755532265048,0.51642247,183.05,182.94,6.04988953]
[1755532266861,0.51642247,183.05,182.88,6.04988953]
[1755532267357,22.44988953,183.03,182.85,6.04988953]
[1755532267657,22.44988953,183.03,182.83,6.08454895]
[1755532267658,16.4,182.98,182.79,6.08454895]
[1755532267852,16.4,182.94,182.79,6.04988953]
[1755532268155,156.68,182.93,182.75,12.13443848]
[1755532268358,16.4,182.91,182.76,5.4687]
[1755532268560,16.4,182.91,182.75,6.04988953]
[1755532268762,16.4,182.91,182.76,5.4688]
[1755532268960,16.4,182.91,182.74,6.04988953]
[1755532269259,16.4,182.87,182.7,367.1]
[1755532269853,16.4,182.85,182.73,5.4695]
[1755532270056,16.4,182.88,182.73,6.04988953]
[1755532270353,156.66,182.88,182.73,6.04988953]
[1755532270558,140.26,182.88,182.73,6.04988953]
[1755532270857,140.26,182.88,182.76,5.4687]
[1755532271058,140.3,182.89,182.73,6.04988953]
[1755532271258,140.3,182.9,182.77,6.04988953]
[1755532271447,140.3,182.9,182.78,5.468]
[1755532271648,6.04988953,182.93,182.77,6.04988953]
[1755532271854,513.44988953,182.97,182.84,5.4664]
[1755532272159,513.44988953,182.97,182.81,6.04988953]
[1755532272755,507.4,182.97,182.81,6.04988953]
[1755532272959,367.1,182.97,182.85,6.04988953]
[1755532273863,367.1,182.97,182.84,6.04988953]
[1755532274355,367.1,182.97,182.85,5.4659]
[1755532274559,367.1,182.97,182.84,6.04988953]
[1755532276449,367.1,182.97,182.86,5.4656]
[1755532276653,367.1,182.97,182.84,6.04988953]
[1755532276848,507.38,182.97,182.84,6.04988953]
[1755532277861,507.38,182.97,182.81,6.04988953]
[1755532278156,140.22,182.96,182.81,6.04988953]
[1755532278358,140.2,182.95,182.81,6.04988953]
[1755532278662,140.2,182.95,182.83,5.4667]
[1755532278866,140.2,182.95,182.81,6.04988953]
[1755532279162,140.2,182.95,182.81,11.51708953]
[1755532279356,140.2,182.95,182.81,6.04988953]
[1755532279553,367.1,182.97,182.81,6.04988953]
[1755532279762,140.16,182.94,182.81,6.04988953]
[1755532280261,140.16,182.94,182.78,6.04988953]
[1755532280464,6.04988953,182.95,182.78,6.04988953]
[1755532280656,367.1,182.97,182.82,6.04988953]
[1755532280956,507.18,182.97,182.89,5.465]
[1755532281161,6.04988953,183.04,182.9,6.04988953]
[1755532281361,140.12,183.03,182.9,6.04988953]
[1755532281561,140.12,183.03,182.91,5.4642]
[1755532282156,16.4,183.02,182.86,6.04988953]
[1755532282860,140.12,183.03,182.86,6.04988953]
[1755532283061,140.12,183.03,182.86,11.51558953]
[1755532283259,140.12,183.03,182.86,6.04988953]
[1755532283658,140.12,183.03,182.87,5.4654]
[1755532284057,16.4,183.02,182.86,6.04988953]
[1755532284257,16.4,183.0,182.83,6.04988953]
[1755532284462,6.04988953,183.01,182.83,6.04988953]
[1755532284666,6.04988953,183.01,182.87,6.04988953]
[1755532284857,139.96,183.0,182.87,6.04988953]
[1755532285161,140.0,183.01,182.87,6.04988953]
[1755532285763,140.0,183.01,182.9,5.4647]
[1755532285959,140.0,183.01,182.87,6.04988953]
[1755532286768,140.0,183.01,182.92,5.4639]
[1755532286960,140.0,183.01,182.87,6.04988953]
[1755532287265,140.0,183.01,182.9,5.4647]
[1755532287866,140.0,183.01,182.91,5.4642]
[1755532288259,140.0,183.01,182.87,6.04988953]
[1755532288658,156.4,183.01,182.87,6.04988953]
[1755532288861,162.44988953,183.01,182.83,6.04988953]
[1755532289068,16.4,182.99,182.83,6.04988953]
[1755532289259,16.4,182.99,182.85,5.466]
[1755532289567,193.86,182.98,182.87,6.04988953]
[1755532289767,139.86,182.98,182.87,6.04988953]
[1755532290363,139.86,182.98,182.9,5.4645]
[1755532291264,139.86,182.98,182.87,6.04988953]
[1755532291864,139.86,182.98,182.9,5.4645]
[1755532292264,139.86,182.98,182.89,5.4649]
[1755532292468,139.86,182.98,182.87,6.04988953]
[1755532293277,139.86,182.98,182.9,5.4645]
[1755532294277,139.86,182.98,182.89,5.4649]
[1755532294480,139.86,182.98,182.87,6.04988953]
[1755532295176,139.86,182.98,182.9,5.4644]
[1755532295376,139.86,182.98,182.87,6.04988953]
[1755532295781,139.86,182.98,182.84,6.04988953]
[1755532296380,6.04988953,182.97,182.81,6.04988953]
[1755532296776,22.44988953,182.97,182.81,6.04988953]
[1755532297076,16.4,182.97,182.78,6.04988953]
[1755532297276,139.86,182.98,182.82,6.04988953]
[1755532297478,156.02,182.97,182.8,6.04988953]
[1755532297776,139.62,182.99,182.84,6.04988953]
[1755532300472,139.62,182.99,182.83,6.08454895]
[1755532300778,156.02,182.99,182.82,6.04988953]
[1755532301172,6.04988953,183.02,182.88,5.4651]
[1755532301173,22.44988953,183.02,182.88,5.4651]
[1755532301378,140.64,183.01,182.82,12.13443848]
[1755532301779,140.64,183.01,182.9,5.4647]
[1755532301982,54.0,183.0,182.9,5.4647]
[1755532303079,54.0,183.0,182.91,5.4644]
[1755532303282,54.0,183.0,182.86,6.04988953]
[1755532303486,54.0,182.99,182.86,6.04988953]
[1755532303679,54.0,182.99,182.91,5.4643]
[1755532304484,54.0,182.99,182.86,6.04988953]
[1755532304679,22.44988953,183.03,182.86,6.04988953]
[1755532304883,140.4,183.02,182.88,6.04988953]
[1755532305186,140.4,183.02,182.92,5.4639]
[1755532305484,140.4,183.02,182.88,6.04988953]
[1755532305888,140.4,183.02,182.85,6.04988953]
[1755532305889,6.04988953,183.0,182.85,6.04988953]
[1755532306181,6.04988953,183.0,182.87,5.4656]
[1755532306389,6.04988953,183.0,182.85,6.04988953]
[1755532306776,6.04988953,183.0,182.88,5.4651]
[1755532306979,0.51642247,183.05,182.84,6.08454895]
[1755532307180,0.51642247,183.05,182.91,6.04988953]
[1755532307380,140.34,183.04,182.91,6.04988953]
[1755532307781,140.34,183.04,182.95,5.463]
[1755532307982,140.34,183.04,182.91,6.04988953]
[1755532308183,0.51642247,183.05,182.91,6.04988953]
[1755532308490,140.3,183.03,182.95,5.4632]
[1755532308889,0.51642247,183.05,182.91,6.04988953]
[1755532309084,140.77642247,183.05,182.91,6.04988953]
[1755532309486,140.77642247,183.05,182.97,5.4625]
[1755532310084,0.51642247,183.05,182.97,5.4625]
[1755532310588,0.51642247,183.05,182.96,5.4629]
[1755532310988,0.51642247,183.05,182.93,5.4636]
[1755532311191,0.51642247,183.05,182.89,6.04988953]
[1755532311889,140.14,183.04,182.92,6.04988953]
[1755532312083,140.14,183.04,182.95,5.463]
[1755532312287,194.14,183.04,182.95,5.463]
[1755532312983,54.0,183.04,182.95,5.463]
[1755532313387,140.02,183.03,182.92,6.04988953]
[1755532313686,0.51642247,183.05,182.95,6.04988953]
[1755532314091,0.51642247,183.05,182.99,5.462]
[1755532315089,0.51642247,183.05,182.95,6.04988953]
[1755532315689,0.51642247,183.05,183.0,5.4617]
[1755532315884,0.51642247,183.05,182.95,6.04988953]
[1755532316296,0.51642247,183.05,183.01,5.4613]
[1755532317492,0.51642247,183.05,183.02,5.461]
[1755532317889,0.51642247,183.05,183.0,5.4615]
[1755532318285,0.51642247,183.05,182.98,6.04988953]
[1755532318790,0.51642247,183.05,182.95,12.13443848]
[1755532318990,0.51642247,183.05,182.95,6.04988953]
[1755532319193,0.51642247,183.05,182.98,5.4622]
[1755532319391,0.51642247,183.05,182.95,6.04988953]
[1755532319698,0.51642247,183.05,182.98,5.4624]
[1755532319892,0.51642247,183.05,182.95,6.04988953]
[1755532320992,0.51642247,183.05,183.01,5.4614]
[1755532321193,0.51642247,183.05,182.98,6.04988953]
[1755532321992,0.51642247,183.05,183.01,5.4612]
[1755532322194,0.51642247,183.05,182.98,6.04988953]
[1755532323300,0.51642247,183.05,183.0,5.4617]
[1755532323499,0.51642247,183.05,182.98,6.04988953]
[1755532323801,0.51642247,183.05,182.99,5.462]
[1755532324002,0.51642247,183.05,182.98,6.04988953]
[1755532324399,0.51642247,183.05,182.96,6.04988953]
[1755532324795,0.51642247,183.05,182.93,6.04988953]
[1755532325400,0.51642247,183.05,182.97,5.4625]
[1755532326498,0.51642247,183.05,182.98,5.4624]
[1755532327399,0.51642247,183.05,182.97,5.4626]
[1755532328306,0.51642247,183.05,182.98,5.4624]
[1755532329599,0.51642247,183.05,182.94,6.04988953]
[1755532330710,0.51642247,183.05,182.97,5.4626]
[1755532331204,0.51642247,183.05,182.99,5.4619]
[1755532331412,0.51642247,183.05,182.97,6.04988953]
[1755532331712,0.51642247,183.05,183.0,5.4617]
[1755532333310,0.51642247,183.05,182.99,5.462]
[1755532333611,0.51642247,183.05,182.95,6.04988953]
[1755532333812,0.51642247,183.05,182.98,5.4622]
[1755532334111,0.51642247,183.05,182.95,6.04988953]
[1755532334308,0.51642247,183.05,182.98,5.4623]
[1755532334510,0.51642247,183.05,182.95,6.04988953]
[1755532334905,0.51642247,183.05,182.99,5.462]
[1755532335310,0.51642247,183.05,182.95,6.04988953]
[1755532335607,0.51642247,183.05,182.98,5.4624]
[1755532335815,0.51642247,183.05,182.93,6.04988953]
[1755532336012,0.51642247,183.05,182.95,5.4631]
[1755532336214,0.51642247,183.05,182.93,6.04988953]
[1755532336611,0.51642247,183.05,182.97,5.4625]
[1755532337214,0.51642247,183.05,182.93,6.04988953]
[1755532338420,0.51642247,183.05,182.96,6.04988953]
[1755532338920,0.51642247,183.05,182.98,5.4623]
[1755532339321,0.51642247,183.05,182.96,6.04988953]
[1755532341107,0.51642247,183.05,182.97,5.4625]
[1755532341713,0.51642247,183.05,182.96,11.51268953]
[1755532341911,0.51642247,183.05,182.96,6.04988953]
[1755532342318,0.51642247,183.05,182.98,5.4622]
[1755532342622,0.51642247,183.05,182.97,3.82987883]
[1755532342823,0.51642247,183.05,183.0,3.82987883]
[1755532344320,0.51642247,183.05,183.0,9.29147883]
[1755532344525,0.51642247,183.05,182.97,3.82987883]
[1755532344729,0.51642247,183.05,182.94,6.08454895]
[1755532344920,0.51642247,183.05,182.96,3.82987883]
[1755532345224,0.51642247,183.05,182.99,3.82987883]
[1755532345820,0.51642247,183.05,182.99,9.29177883]
[1755532346530,20.22987883,183.03,182.92,3.82987883]
[1755532346826,4.53728868,183.02,182.92,3.82987883]
[1755532347016,16.4,183.03,182.92,3.82987883]
[1755532347219,4.5381839,183.02,182.92,3.82987883]
[1755532347418,0.51642247,183.05,182.95,9.29297883]
[1755532347621,4.53813377,183.04,182.95,9.29297883]
[1755532347820,0.51642247,183.05,182.95,3.82987883]
[1755532348028,0.51642247,183.05,182.98,9.29207883]
[1755532348728,0.51642247,183.05,182.98,3.82987883]
[1755532349820,0.51642247,183.05,183.04,3.82987883]
[1755532350026,0.51642247,183.05,183.01,3.82987883]
[1755532350830,0.51642247,183.05,183.01,9.29117883]
[1755532351432,0.51642247,183.05,183.01,3.82987883]
[1755532351629,0.51642247,183.05,183.0,5.4617]
[1755532352234,0.51642247,183.05,183.01,5.4614]
[1755532352935,0.51642247,183.05,183.02,3.82987883]
[1755532353128,0.51642247,183.05,183.01,3.82987883]
[1755532355032,0.51642247,183.05,183.0,5.4617]
[1755532355230,0.51642247,183.05,183.0,3.82987883]
[1755532355937,0.51642247,183.05,182.99,5.462]
[1755532356133,0.51642247,183.05,183.0,3.82987883]
[1755532356637,0.51642247,183.05,183.0,9.29157883]
[1755532357139,0.51642247,183.05,183.01,5.4614]
[1755532359042,0.51642247,183.05,182.98,5.4623]
[1755532359839,57.82987883,183.11,182.98,5.4623]
[1755532360040,7.18326392,183.1,182.98,5.4623]
[1755532360343,61.18326392,183.09,182.97,3.82987883]
[1755532360540,4.5885836,183.08,182.97,3.82987883]
[1755532360741,4.5885836,183.07,182.97,3.82987883]
[1755532360940,4.5885836,183.06,183.0,3.82987883]
[1755532361140,54.0,183.09,183.0,3.82987883]
[1755532361443,4.58846889,183.08,183.0,3.82987883]
[1755532361643,4.58846889,183.07,183.0,3.82987883]
[1755532361837,4.58836923,183.06,183.0,3.82987883]
[1755532362142,139.1,183.14,183.03,3.82987883]
[1755532362545,139.1,183.14,183.03,9.29067883]
[1755532363047,139.1,183.14,183.03,3.82987883]
[1755532363839,139.1,183.14,183.03,9.29057883]
[1755532364042,139.1,183.14,183.03,3.82987883]
[1755532364240,7.18159832,183.13,183.03,3.82987883]
[1755532365043,2.59413154,183.13,183.03,3.82987883]
[1755532365244,4.58746679,183.12,183.03,3.82987883]
[1755532366344,4.58746679,183.11,183.03,3.82987883]
[1755532366749,4.58760571,183.1,183.03,3.82987883]
[1755532366940,4.58760571,183.09,183.03,3.82987883]
[1755532367141,139.1,183.14,183.03,9.29067883]
[1755532367439,61.18098007,183.13,183.03,9.29067883]
[1755532367639,4.58707186,183.12,183.03,9.29067883]
[1755532367940,4.58707186,183.11,183.03,9.29067883]
[1755532368137,4.58707186,183.1,183.03,9.29067883]
[1755532368344,4.58707186,183.09,183.03,3.82987883]
[1755532368647,54.0,183.13,183.03,3.82987883]
[1755532368848,4.58656696,183.12,183.03,9.29057883]
[1755532369048,4.58656696,183.11,183.03,9.29057883]
[1755532369348,4.58656696,183.1,183.03,9.29057883]
[1755532369546,4.58656696,183.09,183.03,9.29057883]
[1755532369741,139.08,183.11,183.03,9.29057883]
[1755532369941,4.58593215,183.1,183.03,9.29057883]
[1755532370137,4.58593215,183.09,183.03,9.29057883]
[1755532370344,54.0,183.13,183.03,9.29057883]
[1755532370538,143.64531149,183.12,183.03,9.29057883]
[1755532370740,4.58531149,183.11,183.03,9.29057883]
[1755532370940,4.58531149,183.1,183.03,9.29057883]
[1755532371145,4.58531149,183.09,183.03,9.29057883]
[1755532371345,139.06,183.11,183.03,9.29057883]
[1755532371547,4.58481835,183.1,183.03,9.29057883]
[1755532371746,139.06,183.11,183.03,9.29057883]
[1755532371948,4.58444481,183.1,183.03,9.29057883]
[1755532372253,139.06,183.11,183.03,9.29057883]
[1755532372446,4.58404573,183.1,183.04,5.4606]
[1755532372646,139.06,183.11,183.03,3.82987883]
[1755532372845,4.58404378,183.1,183.03,3.82987883]
[1755532373050,4.58413521,183.09,183.03,3.82987883]
[1755532373248,139.06,183.11,183.03,3.82987883]
[1755532373453,4.58384747,183.1,183.03,3.82987883]
[1755532373647,139.06,183.11,183.03,3.82987883]
[1755532373850,58.58384747,183.1,183.03,3.82987883]
[1755532374046,54.0,183.1,183.03,3.82987883]
[1755532374553,139.06,183.11,183.03,3.82987883]
[1755532374755,4.58350753,183.1,183.03,3.82987883]
[1755532375052,139.06,183.11,183.03,3.82987883]
[1755532375453,4.58334083,183.1,183.03,3.82987883]